[Event "*** Titled Tuesday 3|2 Blitz"]
[Site "Chess.com"]
[Date "2015.03.03"]
[Round "6"]
[White "alturas_pacificas"]
[Black "chesstatour"]
[Result "1-0"]
[WhiteElo "2057"]
[BlackElo "1885"]
[TimeControl "180+2"]
[EndTime "12:14:29 PST"]
[Termination "alturas_pacificas won on time"]

1. d4 {[%clk 0:03:00]} 1... e6 {[%clk 0:02:56.7]} 2. Bf4 {[%clk 0:03:00.5]} 2...
Nf6 {[%clk 0:02:54.9]} 3. e3 {[%clk 0:03:01.2]} 3... b6 {[%clk 0:02:53.7]} 4.
Nf3 {[%clk 0:03:01.2]} 4... Bb7 {[%clk 0:02:55.1]} 5. Be2 {[%clk 0:03:01.9]}
5... Be7 {[%clk 0:02:55.5]} 6. O-O {[%clk 0:03:02.3]} 6... O-O {[%clk 0:02:57]}
7. h3 {[%clk 0:03:03.1]} 7... d5 {[%clk 0:02:53.7]} 8. c4 {[%clk 0:03:03.9]}
8... Ne4 {[%clk 0:02:52.5]} 9. Nc3 {[%clk 0:03:03.2]} 9... Nd7 {[%clk
0:02:53.3]} 10. cxd5 {[%clk 0:02:57.6]} 10... exd5 {[%clk 0:02:53.1]} 11. Rc1
{[%clk 0:02:56.6]} 11... Rc8 {[%clk 0:02:51.7]} 12. Nb5 {[%clk 0:02:41.6]} 12...
c5 {[%clk 0:01:53.8]} 13. Nxa7 {[%clk 0:02:25.3]} 13... Ra8 {[%clk 0:01:50.6]}
14. Nb5 {[%clk 0:02:25.3]} 14... Rxa2 {[%clk 0:01:42.6]} 15. dxc5 {[%clk
0:02:18.8]} 15... bxc5 {[%clk 0:01:34.2]} 16. Qb3 {[%clk 0:02:03.4]} 16... Qa5
{[%clk 0:01:19.2]} 17. Bc7 {[%clk 0:01:41.7]} 17... Qa4 {[%clk 0:01:12.9]} 18.
Qxa4 {[%clk 0:01:41.1]} 18... Rxa4 {[%clk 0:01:13.6]} 19. Nc3 {[%clk 0:01:39.4]}
19... Rb4 {[%clk 0:00:58.3]} 20. Rc2 {[%clk 0:01:13.2]} 20... Nxc3 {[%clk
0:00:39]} 21. bxc3 {[%clk 0:01:12.4]} 21... Rb3 {[%clk 0:00:39.2]} 22. c4 {[%clk
0:01:06]} 22... Nb6 {[%clk 0:00:18.3]} 23. cxd5 {[%clk 0:01:03.1]} 23... Nxd5
{[%clk 0:00:18.4]} 24. Bc4 {[%clk 0:00:53.5]} 24... Rb4 {[%clk 0:00:14.3]} 25.
Bg3 {[%clk 0:00:54.2]} 25... Ra8 {[%clk 0:00:11.1]} 26. Rfc1 {[%clk 0:00:54.2]}
26... Nb6 {[%clk 0:00:10.1]} 27. Bf1 {[%clk 0:00:51.3]} 27... Rba4 {[%clk
0:00:10.8]} 28. Ne5 {[%clk 0:00:49.4]} 28... Ra1 {[%clk 0:00:08.3]} 29. Nd3
{[%clk 0:00:46.8]} 29... Rxc1 {[%clk 0:00:09]} 30. Rxc1 {[%clk 0:00:48.7]} 30...
c4 {[%clk 0:00:08.7]} 31. Ne5 {[%clk 0:00:47.5]} 31... c3 {[%clk 0:00:06.7]} 32.
Rxc3 {[%clk 0:00:42]} 32... Ra1 {[%clk 0:00:06]} 33. Nf3 {[%clk 0:00:43.1]}
33... Ba6 {[%clk 0:00:05.3]} 34. Nh2 {[%clk 0:00:43.3]} 34... h6 {[%clk
0:00:02.4]} 35. Be5 {[%clk 0:00:42.7]} 1-0

[Event "*** Titled Tuesday 3|2 Blitz"]
[Site "Chess.com"]
[Date "2015.03.03"]
[Round "6"]
[White "wonderfultime"]
[Black "MITerryble"]
[Result "1-0"]
[WhiteElo "2556"]
[BlackElo "2507"]
[TimeControl "180+2"]
[EndTime "12:14:36 PST"]
[Termination "wonderfultime won by resignation"]

1. d4 {[%clk 0:03:00]} 1... e6 {[%clk 0:02:59.1]} 2. c4 {[%clk 0:03:00.2]} 2...
Bb4+ {[%clk 0:02:59.4]} 3. Nd2 {[%clk 0:03:00.8]} 3... Nf6 {[%clk 0:02:59.8]} 4.
Nf3 {[%clk 0:03:02]} 4... O-O {[%clk 0:02:59.6]} 5. a3 {[%clk 0:03:03.4]} 5...
Bxd2+ {[%clk 0:03:00.2]} 6. Bxd2 {[%clk 0:03:05.3]} 6... Ne4 {[%clk 0:02:58.9]}
7. Bf4 {[%clk 0:03:05.3]} 7... d6 {[%clk 0:02:59.8]} 8. e3 {[%clk 0:03:06.8]}
8... f5 {[%clk 0:02:56.8]} 9. Bd3 {[%clk 0:03:07.2]} 9... Nd7 {[%clk 0:02:55.2]}
10. O-O {[%clk 0:03:00.4]} 10... Qe7 {[%clk 0:02:39.7]} 11. Bxe4 {[%clk
0:02:52.2]} 11... fxe4 {[%clk 0:02:40.3]} 12. Nd2 {[%clk 0:02:54.1]} 12... e5
{[%clk 0:02:25.3]} 13. dxe5 {[%clk 0:02:56]} 13... Nxe5 {[%clk 0:02:21.3]} 14.
Nxe4 {[%clk 0:02:42]} 14... Nxc4 {[%clk 0:02:21.5]} 15. Ng5 {[%clk 0:02:37.8]}
15... Be6 {[%clk 0:02:14.7]} 16. Rc1 {[%clk 0:02:29.3]} 16... h6 {[%clk
0:01:59.8]} 17. Nxe6 {[%clk 0:02:25.6]} 17... Qxe6 {[%clk 0:02:01.7]} 18. b3
{[%clk 0:02:26.3]} 18... Nxa3 {[%clk 0:01:28.1]} 19. Rxc7 {[%clk 0:02:26.2]}
19... Nb5 {[%clk 0:01:28.8]} 20. Rxb7 {[%clk 0:02:26.1]} 20... Nc3 {[%clk
0:01:30]} 21. Qd3 {[%clk 0:01:49.7]} 21... Ne4 {[%clk 0:01:16.2]} 22. Qd4 {[%clk
0:01:43.5]} 22... Rf7 {[%clk 0:01:02.1]} 23. Rxf7 {[%clk 0:01:44]} 23... Kxf7
{[%clk 0:01:03.4]} 24. Ra1 {[%clk 0:01:44.3]} 24... a5 {[%clk 0:00:39.2]} 25.
Qb6 {[%clk 0:01:38.1]} 25... Qd5 {[%clk 0:00:28.5]} 26. h3 {[%clk 0:01:09.6]}
26... g5 {[%clk 0:00:23.3]} 27. Bh2 {[%clk 0:01:07.3]} 27... Rc8 {[%clk
0:00:19.3]} 28. Qa7+ {[%clk 0:01:01.1]} 28... Kg6 {[%clk 0:00:17.8]} 29. Qe7
{[%clk 0:00:59.3]} 29... Nf6 {[%clk 0:00:06.1]} 30. Qxd6 {[%clk 0:00:53.3]}
30... Qxd6 {[%clk 0:00:05.2]} 31. Bxd6 {[%clk 0:00:55.2]} 31... Ne4 {[%clk
0:00:06.8]} 32. Be5 {[%clk 0:00:54.1]} 32... Rc2 {[%clk 0:00:07.9]} 33. f3
{[%clk 0:00:53.8]} 33... Nc5 {[%clk 0:00:08.1]} 34. Rxa5 {[%clk 0:00:53.3]}
34... Nxb3 {[%clk 0:00:08.7]} 35. Ra6+ {[%clk 0:00:54.8]} 35... Kf5 {[%clk
0:00:09.9]} 36. Bg7 {[%clk 0:00:52.8]} 36... Rc1+ {[%clk 0:00:08.4]} 37. Kh2
{[%clk 0:00:54.3]} 37... Rc2 {[%clk 0:00:09.7]} 38. Rf6+ {[%clk 0:00:55.4]}
38... Ke5 {[%clk 0:00:10.8]} 39. Rc6+ {[%clk 0:00:57.3]} 39... Kd5 {[%clk
0:00:11.4]} 40. Rxc2 {[%clk 0:00:59.2]} 1-0

[Event "*** Titled Tuesday 3|2 Blitz"]
[Site "Chess.com"]
[Date "2015.03.03"]
[Round "6"]
[White "Novak_Pezelj"]
[Black "Ar4uha"]
[Result "0-1"]
[WhiteElo "2377"]
[BlackElo "2470"]
[TimeControl "180+2"]
[EndTime "12:14:59 PST"]
[Termination "Ar4uha won on time"]

1. e4 {[%clk 0:03:00]} 1... d5 {[%clk 0:02:42.4]} 2. exd5 {[%clk 0:02:55]} 2...
Nf6 {[%clk 0:02:43.7]} 3. Bb5+ {[%clk 0:02:43.6]} 3... Bd7 {[%clk 0:02:44.4]} 4.
Bc4 {[%clk 0:02:44.9]} 4... Bg4 {[%clk 0:02:45.4]} 5. f3 {[%clk 0:02:33.5]} 5...
Bf5 {[%clk 0:02:46.5]} 6. Nc3 {[%clk 0:02:31.8]} 6... Nbd7 {[%clk 0:02:45.9]} 7.
Nge2 {[%clk 0:02:19.6]} 7... Nb6 {[%clk 0:02:46.6]} 8. Ng3 {[%clk 0:02:20.3]}
8... Nxc4 {[%clk 0:02:29.8]} 9. Nxf5 {[%clk 0:02:19.7]} 9... Nxd5 {[%clk
0:02:30.3]} 10. O-O {[%clk 0:02:15.8]} 10... e6 {[%clk 0:02:28.5]} 11. Ng3
{[%clk 0:02:09]} 11... Bc5+ {[%clk 0:02:23.6]} 12. Kh1 {[%clk 0:02:09.8]} 12...
O-O {[%clk 0:02:21.2]} 13. Qe2 {[%clk 0:02:08.2]} 13... Nd6 {[%clk 0:02:18]} 14.
Na4 {[%clk 0:02:01]} 14... Bb6 {[%clk 0:02:14.8]} 15. b3 {[%clk 0:01:42.7]}
15... Qh4 {[%clk 0:02:10.6]} 16. Bb2 {[%clk 0:01:33]} 16... Nf4 {[%clk
0:02:04.8]} 17. Qe1 {[%clk 0:01:22.9]} 17... Rad8 {[%clk 0:01:21.8]} 18. c4
{[%clk 0:01:07.4]} 18... Nd3 {[%clk 0:01:19]} 19. Qb1 {[%clk 0:01:00.7]} 19...
Nf2+ {[%clk 0:01:14.5]} 20. Rxf2 {[%clk 0:00:48.9]} 20... Bxf2 {[%clk
0:01:15.1]} 21. Nf1 {[%clk 0:00:48]} 21... Nf5 {[%clk 0:01:10.2]} 22. Bc3 {[%clk
0:00:28.2]} 22... Bd4 {[%clk 0:00:49.5]} 23. Qc2 {[%clk 0:00:20.2]} 23... Qf2
{[%clk 0:00:45.6]} 24. Bxd4 {[%clk 0:00:16.6]} 24... Rxd4 {[%clk 0:00:45.2]} 25.
Nc5 {[%clk 0:00:15.7]} 25... Rfd8 {[%clk 0:00:23.1]} 26. Ne4 {[%clk 0:00:12.7]}
26... Qh4 {[%clk 0:00:23.6]} 27. Qc3 {[%clk 0:00:09.4]} 27... b6 {[%clk
0:00:17.9]} 28. a4 {[%clk 0:00:06.2]} 28... a5 {[%clk 0:00:18]} 29. b4 {[%clk
0:00:06.4]} 29... axb4 {[%clk 0:00:18.8]} 30. Qxb4 {[%clk 0:00:08]} 30... Rxe4
{[%clk 0:00:17.8]} 31. fxe4 {[%clk 0:00:08.6]} 31... Qxe4 {[%clk 0:00:19.5]} 32.
Qc3 {[%clk 0:00:08]} 32... Rd3 {[%clk 0:00:16.8]} 33. Qc2 {[%clk 0:00:07.6]}
33... h5 {[%clk 0:00:16.4]} 34. Re1 {[%clk 0:00:04.8]} 34... Qd4 {[%clk
0:00:13.3]} 0-1

[Event "*** Titled Tuesday 3|2 Blitz"]
[Site "Chess.com"]
[Date "2015.03.03"]
[Round "6"]
[White "kinetix"]
[Black "Mvpag"]
[Result "0-1"]
[WhiteElo "1433"]
[BlackElo "1860"]
[TimeControl "180+2"]
[EndTime "12:15:03 PST"]
[Termination "Mvpag won by resignation"]

1. e4 {[%clk 0:03:00]} 1... e5 {[%clk 0:02:58.6]} 2. f4 {[%clk 0:02:59.6]} 2...
Nc6 {[%clk 0:02:59.4]} 3. Nf3 {[%clk 0:02:58.7]} 3... d6 {[%clk 0:03:01]} 4. Bc4
{[%clk 0:02:54.4]} 4... Be7 {[%clk 0:03:01.9]} 5. Nc3 {[%clk 0:02:52.4]} 5...
Nf6 {[%clk 0:03:03.1]} 6. d3 {[%clk 0:02:50.9]} 6... O-O {[%clk 0:03:04.3]} 7.
O-O {[%clk 0:02:49]} 7... Na5 {[%clk 0:03:03.2]} 8. Bb5 {[%clk 0:02:48.9]} 8...
c6 {[%clk 0:03:03.8]} 9. Ba4 {[%clk 0:02:49.6]} 9... b5 {[%clk 0:03:05.1]} 10.
Bb3 {[%clk 0:02:50.5]} 10... Qc7 {[%clk 0:03:04.6]} 11. Qe1 {[%clk 0:02:45.5]}
11... Nxb3 {[%clk 0:02:58.3]} 12. axb3 {[%clk 0:02:46]} 12... b4 {[%clk
0:02:53.9]} 13. Ne2 {[%clk 0:02:44.1]} 13... c5 {[%clk 0:02:54.1]} 14. Nd2
{[%clk 0:02:39.9]} 14... a5 {[%clk 0:02:35.9]} 15. Nc4 {[%clk 0:02:35.1]} 15...
Ba6 {[%clk 0:02:35.7]} 16. fxe5 {[%clk 0:02:20]} 16... dxe5 {[%clk 0:02:33.5]}
17. Rf5 {[%clk 0:02:19.1]} 17... Bxc4 {[%clk 0:02:24.9]} 18. bxc4 {[%clk
0:02:19.3]} 18... Ra6 {[%clk 0:02:25.5]} 19. Qg3 {[%clk 0:02:14.7]} 19... Kh8
{[%clk 0:02:20.5]} 20. Be3 {[%clk 0:02:04.6]} 20... Nd7 {[%clk 0:02:06.7]} 21.
h4 {[%clk 0:01:59]} 21... Rg6 {[%clk 0:02:02]} 22. Qh3 {[%clk 0:01:57.1]} 22...
Rf6 {[%clk 0:01:44.7]} 23. b3 {[%clk 0:01:40.7]} 23... Rxf5 {[%clk 0:01:43.6]}
24. Qxf5 {[%clk 0:01:36.7]} 24... Bxh4 {[%clk 0:01:37.7]} 25. g3 {[%clk
0:01:37.7]} 25... Bf6 {[%clk 0:01:31.8]} 26. Kg2 {[%clk 0:01:39]} 26... g6
{[%clk 0:01:19.6]} 27. Qf3 {[%clk 0:01:39.7]} 27... Bg7 {[%clk 0:01:17.3]} 28.
g4 {[%clk 0:01:35]} 28... Kg8 {[%clk 0:01:17.1]} 29. Ng3 {[%clk 0:01:30.9]}
29... Re8 {[%clk 0:01:09.5]} 30. Ra4 {[%clk 0:01:25.4]} 30... Nf8 {[%clk
0:01:07.5]} 31. Qd1 {[%clk 0:01:24.2]} 31... Ne6 {[%clk 0:01:07.3]} 32. Qa1
{[%clk 0:01:23.2]} 32... Ra8 {[%clk 0:01:07.7]} 33. Qf1 {[%clk 0:01:18.8]} 33...
Nd4 {[%clk 0:01:08]} 34. Ra2 {[%clk 0:01:17.7]} 34... Qd7 {[%clk 0:01:01]} 35.
Bxd4 {[%clk 0:01:08.2]} 35... Qxd4 {[%clk 0:00:42.6]} 36. Qf2 {[%clk 0:01:03.9]}
36... Qd7 {[%clk 0:00:38.6]} 37. Qxc5 {[%clk 0:00:59.6]} 37... Qxg4 {[%clk
0:00:29.5]} 38. Rxa5 {[%clk 0:00:58.2]} 38... Rxa5 {[%clk 0:00:25.2]} 39. Qxa5
{[%clk 0:00:59.1]} 39... Bh6 {[%clk 0:00:26.3]} 40. Qa1 {[%clk 0:00:33.9]} 40...
Bf4 {[%clk 0:00:18.5]} 41. Qe1 {[%clk 0:00:33.9]} 41... h5 {[%clk 0:00:19.1]}
0-1

[Event "*** Titled Tuesday 3|2 Blitz"]
[Site "Chess.com"]
[Date "2015.03.03"]
[Round "6"]
[White "ChessTrener"]
[Black "Tomsel"]
[Result "1/2-1/2"]
[WhiteElo "2446"]
[BlackElo "2293"]
[TimeControl "180+2"]
[EndTime "12:15:25 PST"]
[Termination "Game drawn by agreement"]

1. e4 {[%clk 0:03:00]} 1... c5 {[%clk 0:02:58.6]} 2. Ne2 {[%clk 0:03:00.1]} 2...
e6 {[%clk 0:02:57.4]} 3. Nbc3 {[%clk 0:03:00.5]} 3... Nc6 {[%clk 0:02:57.9]} 4.
d4 {[%clk 0:03:02]} 4... cxd4 {[%clk 0:02:59.8]} 5. Nxd4 {[%clk 0:03:03.5]} 5...
Qc7 {[%clk 0:03:01.4]} 6. Nb3 {[%clk 0:03:04.6]} 6... Nf6 {[%clk 0:03:00.5]} 7.
Bd3 {[%clk 0:03:05.8]} 7... a6 {[%clk 0:02:58.8]} 8. O-O {[%clk 0:03:07.3]} 8...
h5 {[%clk 0:02:52.2]} 9. f4 {[%clk 0:03:08.1]} 9... Nb4 {[%clk 0:02:37.2]} 10.
Qf3 {[%clk 0:03:04.9]} 10... b5 {[%clk 0:02:29.5]} 11. Bd2 {[%clk 0:03:04]}
11... Bb7 {[%clk 0:02:27.2]} 12. a3 {[%clk 0:03:02.2]} 12... Nc6 {[%clk
0:01:51.6]} 13. Kh1 {[%clk 0:02:52.5]} 13... Be7 {[%clk 0:00:54.9]} 14. Be3
{[%clk 0:02:39.3]} 14... Rd8 {[%clk 0:00:13.9]} 15. Bg1 {[%clk 0:02:37.5]} 15...
h4 {[%clk 0:00:07.2]} 16. Nc5 {[%clk 0:02:35]} 16... h3 {[%clk 0:00:06.6]} 17.
Nxb7 {[%clk 0:02:30.1]} 17... hxg2+ {[%clk 0:00:08.5]} 18. Qxg2 {[%clk
0:02:31.3]} 18... Qxb7 {[%clk 0:00:10.2]} 19. e5 {[%clk 0:02:31.2]} 19... Nh5
{[%clk 0:00:08.7]} 20. Rf3 {[%clk 0:02:29.1]} 20... Na5 {[%clk 0:00:04.2]} 21.
Ne4 {[%clk 0:02:26.4]} 21... d5 {[%clk 0:00:03]} 22. Ng3 {[%clk 0:02:21]} 22...
d4 {[%clk 0:00:03.1]} 23. Be4 {[%clk 0:02:13.2]} 23... Nxg3+ {[%clk 0:00:03.5]}
24. Rxg3 {[%clk 0:02:14.5]} 24... Qc7 {[%clk 0:00:03.7]} 25. Rxg7 {[%clk
0:02:14]} 25... Bf8 {[%clk 0:00:02.9]} 26. Rg4 {[%clk 0:02:13.1]} 26... Nc4
{[%clk 0:00:03.5]} 27. Rd1 {[%clk 0:01:48.4]} 27... Nxb2 {[%clk 0:00:04]} 28.
Rxd4 {[%clk 0:01:49.4]} 28... Rxd4 {[%clk 0:00:05.2]} 29. Bxd4 {[%clk
0:01:50.5]} 29... Bxa3 {[%clk 0:00:06.1]} 30. f5 {[%clk 0:01:44.2]} 30... Nd1
{[%clk 0:00:03.4]} 31. fxe6 {[%clk 0:01:39.8]} 31... fxe6 {[%clk 0:00:03]} 32.
Rg8+ {[%clk 0:01:40.2]} 32... Rxg8 {[%clk 0:00:04.1]} 33. Qxg8+ {[%clk
0:01:41.1]} 33... Kd7 {[%clk 0:00:04.7]} 34. Qa8 {[%clk 0:01:28.3]} 34... Bc5
{[%clk 0:00:03.2]} 35. Bxc5 {[%clk 0:01:21.4]} 35... Qxc5 {[%clk 0:00:05.1]} 36.
Qb7+ {[%clk 0:01:22.4]} 36... Qc7 {[%clk 0:00:06.2]} 37. Bc6+ {[%clk 0:01:21.2]}
37... Kd8 {[%clk 0:00:07.6]} 38. Qxa6 {[%clk 0:01:17]} 38... Qxe5 {[%clk
0:00:08.6]} 39. Qa8+ {[%clk 0:01:15.6]} 39... Ke7 {[%clk 0:00:08.6]} 40. Qe8+
{[%clk 0:01:14.8]} 40... Kf6 {[%clk 0:00:06.1]} 41. Qh8+ {[%clk 0:00:55.5]}
41... Kf5 {[%clk 0:00:07.2]} 42. Qxe5+ {[%clk 0:00:53.4]} 42... Kxe5 {[%clk
0:00:08]} 43. Bxb5 {[%clk 0:00:54.9]} 43... Ne3 {[%clk 0:00:07.8]} 44. Bd3
{[%clk 0:00:55.8]} 44... Kf4 {[%clk 0:00:07.4]} 45. Kg1 {[%clk 0:00:56]} 45...
e5 {[%clk 0:00:08.5]} 46. c4 {[%clk 0:00:55.8]} 46... e4 {[%clk 0:00:09.3]} 47.
Be2 {[%clk 0:00:56.7]} 47... Nxc4 {[%clk 0:00:07.4]} 48. Bxc4 {[%clk 0:00:57.3]}
48... Kg5 {[%clk 0:00:09.1]} 1/2-1/2

[Event "*** Titled Tuesday 3|2 Blitz"]
[Site "Chess.com"]
[Date "2015.03.03"]
[Round "6"]
[White "Irochka83"]
[Black "esr44"]
[Result "1-0"]
[WhiteElo "2287"]
[BlackElo "2086"]
[TimeControl "180+2"]
[EndTime "12:15:26 PST"]
[Termination "Irochka83 won by resignation"]

1. Nf3 {[%clk 0:03:00]} 1... g6 {[%clk 0:02:57.8]} 2. c4 {[%clk 0:03:00]} 2...
Bg7 {[%clk 0:02:58.7]} 3. g3 {[%clk 0:03:00.3]} 3... c5 {[%clk 0:02:52]} 4. Bg2
{[%clk 0:03:02.2]} 4... Nc6 {[%clk 0:02:53.2]} 5. Bf1 {[%clk 0:03:04.1]} 5... e5
{[%clk 0:02:50]} 6. Bg2 {[%clk 0:03:06]} 6... Nge7 {[%clk 0:02:45.2]} 7. O-O
{[%clk 0:03:07.9]} 7... O-O {[%clk 0:02:45.1]} 8. Nc3 {[%clk 0:03:09.8]} 8... d6
{[%clk 0:02:42.2]} 9. a3 {[%clk 0:03:11.7]} 9... a5 {[%clk 0:02:42.2]} 10. Rb1
{[%clk 0:03:11.2]} 10... Rb8 {[%clk 0:02:23.3]} 11. Ne1 {[%clk 0:03:11.1]} 11...
Bf5 {[%clk 0:02:13.1]} 12. d3 {[%clk 0:03:11.3]} 12... Qd7 {[%clk 0:02:10.6]}
13. Nc2 {[%clk 0:03:06.1]} 13... Bh3 {[%clk 0:02:07.4]} 14. b4 {[%clk
0:03:05.4]} 14... axb4 {[%clk 0:02:05.2]} 15. axb4 {[%clk 0:03:07.3]} 15... Bxg2
{[%clk 0:02:04.6]} 16. Kxg2 {[%clk 0:03:07.6]} 16... cxb4 {[%clk 0:01:37.7]} 17.
Nxb4 {[%clk 0:03:07.4]} 17... Nxb4 {[%clk 0:01:34.1]} 18. Rxb4 {[%clk
0:03:09.3]} 18... d5 {[%clk 0:01:15]} 19. cxd5 {[%clk 0:03:09.7]} 19... Nxd5
{[%clk 0:01:15.6]} 20. Nxd5 {[%clk 0:03:11]} 20... Qxd5+ {[%clk 0:01:16.6]} 21.
f3 {[%clk 0:03:12.5]} 21... f5 {[%clk 0:01:10.6]} 22. Qb3 {[%clk 0:03:09.2]}
22... Qxb3 {[%clk 0:01:09.9]} 23. Rxb3 {[%clk 0:03:11.1]} 23... Rfe8 {[%clk
0:00:47.1]} 24. Be3 {[%clk 0:03:07.4]} 24... e4 {[%clk 0:00:44.4]} 25. dxe4
{[%clk 0:03:06.5]} 25... fxe4 {[%clk 0:00:44.2]} 26. f4 {[%clk 0:03:07.4]} 26...
Rec8 {[%clk 0:00:25.9]} 27. Rfb1 {[%clk 0:03:05.8]} 27... Rc2 {[%clk 0:00:26.3]}
28. Kf1 {[%clk 0:02:47.1]} 28... Rc3 {[%clk 0:00:24]} 29. Ba7 {[%clk 0:02:39.1]}
29... Rd8 {[%clk 0:00:09.6]} 30. Rxc3 {[%clk 0:02:32.1]} 30... Bxc3 {[%clk
0:00:09.9]} 31. Rxb7 {[%clk 0:02:32.7]} 31... Rd2 {[%clk 0:00:05.6]} 32. Kf2
{[%clk 0:02:30.3]} 32... Bd4+ {[%clk 0:00:04.8]} 33. Bxd4 {[%clk 0:02:29.3]}
33... Rxd4 {[%clk 0:00:06.7]} 34. Ke3 {[%clk 0:02:28.8]} 34... Ra4 {[%clk
0:00:07.6]} 35. Re7 {[%clk 0:02:29.4]} 35... Kf8 {[%clk 0:00:06.2]} 36. Rxe4
{[%clk 0:02:30.3]} 36... Ra2 {[%clk 0:00:07.7]} 37. Kf3 {[%clk 0:02:26.5]} 37...
Kf7 {[%clk 0:00:08.6]} 38. g4 {[%clk 0:02:25.9]} 38... Kf6 {[%clk 0:00:09.3]}
39. h3 {[%clk 0:02:20.4]} 39... Ra3+ {[%clk 0:00:09.7]} 40. Re3 {[%clk
0:02:20.1]} 40... Ra1 {[%clk 0:00:09.6]} 41. Rb3 {[%clk 0:02:20]} 41... Rf1+
{[%clk 0:00:09.4]} 42. Ke4 {[%clk 0:02:20.5]} 42... Kg7 {[%clk 0:00:10.3]} 43.
Ke5 {[%clk 0:02:18.3]} 43... Re1 {[%clk 0:00:10.3]} 44. e4 {[%clk 0:02:17.5]}
44... h5 {[%clk 0:00:09.2]} 45. Rb7+ {[%clk 0:02:17]} 45... Kg8 {[%clk
0:00:07.6]} 46. Kf6 {[%clk 0:01:58.6]} 46... hxg4 {[%clk 0:00:06.2]} 47. Kxg6
{[%clk 0:01:52]} 47... Kf8 {[%clk 0:00:07.3]} 48. hxg4 {[%clk 0:01:50.1]} 48...
Rxe4 {[%clk 0:00:08.5]} 49. Rf7+ {[%clk 0:01:46.7]} 49... Kg8 {[%clk 0:00:08.5]}
50. g5 {[%clk 0:01:44.8]} 50... Re6+ {[%clk 0:00:06.8]} 51. Rf6 {[%clk
0:01:45.3]} 51... Re7 {[%clk 0:00:08.2]} 52. f5 {[%clk 0:01:41.5]} 52... Rg7+
{[%clk 0:00:08.9]} 53. Kh5 {[%clk 0:01:42.7]} 53... Rh7+ {[%clk 0:00:09.4]} 54.
Rh6 {[%clk 0:01:39.7]} 54... Rf7 {[%clk 0:00:09.7]} 55. Kg4 {[%clk 0:01:38]}
55... Kg7 {[%clk 0:00:09]} 56. Rg6+ {[%clk 0:01:37.5]} 56... Kh7 {[%clk
0:00:09.4]} 57. Rb6 {[%clk 0:01:36.3]} 57... Ra7 {[%clk 0:00:09.3]} 58. Kh5
{[%clk 0:01:30.8]} 58... Rc7 {[%clk 0:00:08.4]} 59. g6+ {[%clk 0:01:30.6]} 59...
Kg7 {[%clk 0:00:07.6]} 60. f6+ {[%clk 0:01:31.4]} 1-0

[Event "*** Titled Tuesday 3|2 Blitz"]
[Site "Chess.com"]
[Date "2015.03.03"]
[Round "6"]
[White "GMHess"]
[Black "stepanosinovsky"]
[Result "1-0"]
[WhiteElo "2449"]
[BlackElo "2278"]
[TimeControl "180+2"]
[EndTime "12:15:27 PST"]
[Termination "GMHess won on time"]

1. b3 {[%clk 0:03:00]} 1... Nf6 {[%clk 0:02:58.5]} 2. Bb2 {[%clk 0:03:01.9]}
2... g6 {[%clk 0:03:00.1]} 3. Bxf6 {[%clk 0:03:02.3]} 3... exf6 {[%clk 0:03:02]}
4. c4 {[%clk 0:03:03.9]} 4... Bg7 {[%clk 0:03:03.4]} 5. Nc3 {[%clk 0:03:05.4]}
5... O-O {[%clk 0:03:04.7]} 6. Nf3 {[%clk 0:03:06.3]} 6... f5 {[%clk 0:03:05.3]}
7. e3 {[%clk 0:03:06.8]} 7... Re8 {[%clk 0:03:04.5]} 8. g3 {[%clk 0:03:02]} 8...
Nc6 {[%clk 0:02:37.9]} 9. Bg2 {[%clk 0:02:57]} 9... Bxc3 {[%clk 0:02:28.2]} 10.
dxc3 {[%clk 0:02:55.8]} 10... Qf6 {[%clk 0:02:29]} 11. Nd4 {[%clk 0:02:41.9]}
11... f4 {[%clk 0:02:02.4]} 12. gxf4 {[%clk 0:02:27.6]} 12... Qxf4 {[%clk
0:01:53.2]} 13. Qe2 {[%clk 0:02:05.1]} 13... Qg5 {[%clk 0:01:47]} 14. Bd5 {[%clk
0:01:32]} 14... Ne7 {[%clk 0:01:26.1]} 15. Bf3 {[%clk 0:00:55.5]} 15... c6
{[%clk 0:01:14.8]} 16. O-O-O {[%clk 0:00:53.9]} 16... a5 {[%clk 0:00:32.9]} 17.
h4 {[%clk 0:00:52.1]} 17... Qf6 {[%clk 0:00:33.3]} 18. h5 {[%clk 0:00:52.7]}
18... a4 {[%clk 0:00:34]} 19. hxg6 {[%clk 0:00:53.4]} 19... hxg6 {[%clk
0:00:32.7]} 20. b4 {[%clk 0:00:52.8]} 20... d6 {[%clk 0:00:12.3]} 21. Rh2 {[%clk
0:00:49.4]} 21... Nf5 {[%clk 0:00:09.6]} 22. Rdh1 {[%clk 0:00:38.1]} 22... Nxd4
{[%clk 0:00:10.4]} 23. cxd4 {[%clk 0:00:40]} 23... Bf5 {[%clk 0:00:11.3]} 24.
Qb2 {[%clk 0:00:21.6]} 24... a3 {[%clk 0:00:11.9]} 25. Qc3 {[%clk 0:00:21.5]}
25... c5 {[%clk 0:00:12.3]} 26. Rh8+ {[%clk 0:00:21.8]} 26... Qxh8 {[%clk
0:00:12.3]} 27. Rxh8+ {[%clk 0:00:23.7]} 27... Kxh8 {[%clk 0:00:13.4]} 28. dxc5+
{[%clk 0:00:25.2]} 28... Kg8 {[%clk 0:00:14]} 29. cxd6 {[%clk 0:00:26.7]} 29...
Rab8 {[%clk 0:00:04.5]} 30. c5 {[%clk 0:00:26.8]} 30... Red8 {[%clk 0:00:05.2]}
31. Qxa3 {[%clk 0:00:26.7]} 31... b6 {[%clk 0:00:06.4]} 32. e4 {[%clk
0:00:22.9]} 32... Be6 {[%clk 0:00:05.1]} 33. e5 {[%clk 0:00:24.1]} 33... bxc5
{[%clk 0:00:05.2]} 34. bxc5 {[%clk 0:00:26]} 34... f6 {[%clk 0:00:05.1]} 35. c6
{[%clk 0:00:26.3]} 35... fxe5 {[%clk 0:00:04.9]} 36. c7 {[%clk 0:00:27.8]} 36...
Rbc8 {[%clk 0:00:05.2]} 37. Bb7 {[%clk 0:00:26.1]} 37... Rf8 {[%clk 0:00:05.5]}
38. Bxc8 {[%clk 0:00:27.2]} 38... Rxc8 {[%clk 0:00:06.3]} 39. Qe3 {[%clk
0:00:27.4]} 39... Kf7 {[%clk 0:00:03.2]} 40. Qxe5 {[%clk 0:00:28.5]} 40... Ra8
{[%clk 0:00:02.8]} 41. a4 {[%clk 0:00:27.4]} 1-0